bitfinex-derivatives/quotes_ETHF0:USTF0_20240905
["timestamp","ask_amount","ask_price","bid_price","bid_amount"]
[1725574662205,0.751,2367.5,2367.4,1.79249]
[1725574662401,4.975,2367.5,2367.4,1.79249]
[1725574662601,4.975,2367.5,2367.4,1.37]
[1725574663006,5.39749,2367.5,2367.4,1.37]
[1725574663396,4.975,2367.5,2367.4,1.37]
[1725574663902,5.39749,2367.5,2367.4,1.37]
[1725574665095,5.39749,2367.5,2367.4,1.7925]
[1725574665498,7.0414309,2367.5,2367.4,1.7925]
[1725574666407,7.0414309,2367.5,2367.4,1.37]
[1725574668203,0.4225,2367.4,2367.3,0.00633499]
[1725574668402,6.28971486,2367.4,2367.3,0.00633499]
[1725574669505,2.06645637,2367.4,2367.3,0.00633499]
[1725574669805,4.6465,2367.4,2367.3,0.00633499]
[1725574670109,7.89598434,2367.4,2367.3,0.00633499]
[1725574672407,5.70277,2367.4,2367.3,0.00633499]
[1725574672604,7.897269,2367.4,2367.3,0.00633499]
[1725574672803,2.194499,2367.4,2367.3,1.79885499]
[1725574673008,2.194499,2367.5,2367.4,0.4225]
[1725574673309,5.40863399,2367.6,2367.5,0.42249]
[1725574673610,9.63263399,2367.6,2367.5,0.42249]
[1725574673905,5.40863399,2367.6,2367.5,0.42249]
[1725574674105,5.40863399,2367.6,2367.5,0.78299]
[1725574674605,2.20083399,2367.6,2367.5,0.78299]
[1725574676196,0.00633499,2367.6,2367.5,0.78299]
[1725574676408,2.20083399,2367.6,2367.5,0.78299]
[1725574681614,2.20266535,2367.6,2367.5,0.78299]
[1725574681911,2.20266535,2367.6,2367.5,0.3605]
[1725574681912,3.17365018,2367.6,2367.5,0.3605]
[1725574682213,0.4225,2367.4,2367.3,1.37633499]
[1725574682712,3.16766669,2367.4,2367.3,1.37633499]
[1725574682912,0.4225,2367.4,2367.3,1.37633499]
[1725574683103,0.4225,2367.4,2367.3,1.79885499]
[1725574683504,3.16766669,2367.4,2367.3,1.79885499]
[1725574684917,0.4225,2367.4,2367.3,1.79885499]
[1725574685107,0.4225,2367.4,2367.3,1.37633499]
[1725574685419,1.42453,2367.5,2367.4,0.4225]
[1725574685420,0.7908,2367.5,2367.4,0.4225]
[1725574685609,0.7908,2367.5,2367.3,0.00633499]
[1725574685610,4.6465,2367.4,2367.3,0.00633499]
[1725574690219,5.0323,2367.4,2367.3,0.00633499]
[1725574690913,5.0323,2367.4,2367.3,0.42885499]
[1725574691410,0.42249,2367.5,2367.4,0.42249]
[1725574691610,7.29249173,2367.6,2367.5,0.42249]
[1725574691812,3.99611499,2367.6,2367.5,0.42249]
[1725574692311,0.42249,2367.5,2367.4,0.3798]
[1725574692505,0.42249,2367.5,2367.4,0.80229]
[1725574692827,0.4225,2367.4,2367.3,0.00633499]
[1725574693115,4.6465,2367.4,2367.3,0.00633499]
[1725574693524,5.70277,2367.4,2367.3,0.00633499]
[1725574694920,11.70277,2367.4,2367.3,0.00633499]
[1725574695218,9.1271252,2367.4,2367.3,0.00633499]
[1725574695522,11.83074846,2367.4,2367.3,0.00633499]
[1725574696217,15.1289658,2367.4,2367.3,0.00633499]
[1725574697123,15.00098734,2367.4,2367.3,0.00633499]
[1725574700349,0.42261,2366.8,2366.7,0.114]
[1725574700618,0.4227,2366.3,2366.2,0.42271]
[1725574700821,2.74757779,2366.3,2366.1,1.37]
[1725574701121,2.74757779,2366.3,2365.6,1.79281]
[1725574701122,0.4228,2365.8,2365.6,1.79281]
[1725574701313,2.19413943,2365.7,2365.6,1.79281]
[1725574701518,3.16547428,2365.8,2365.6,1.79281]
[1725574701709,2.19418746,2365.7,2365.6,1.79281]
[1725574701909,3.16547428,2365.8,2365.6,1.79281]
[1725574702113,2.61432839,2365.8,2365.6,1.79281]
[1725574702308,2.61432839,2365.8,2365.6,1.37]
[1725574702309,6.84152839,2365.8,2365.6,1.37]
[1725574702523,6.84153839,2365.7,2365.5,1.37]
[1725574702722,1.64359849,2365.6,2365.5,1.37]
[1725574702912,1.64359849,2365.6,2365.5,1.79284]
[1725574703118,2.06640849,2365.7,2365.5,1.79284]
[1725574703420,2.06639849,2365.8,2365.5,1.79284]
[1725574703727,1.64359849,2365.7,2365.5,1.79284]
[1725574703913,1.64359849,2365.7,2365.5,0.42284]
[1725574704223,2.06639849,2365.8,2365.5,0.42284]
[1725574705222,0.4228,2365.8,2365.5,0.42284]
[1725574705919,0.4228,2365.8,2365.6,0.42283]
[1725574706320,4.65,2365.8,2365.6,0.42283]
[1725574706517,0.42282,2365.7,2365.5,0.42284]
[1725574707121,0.42283,2365.6,2365.5,0.42284]
[1725574707526,0.42282,2365.7,2365.5,0.42284]
[1725574708616,0.42283,2365.6,2365.5,0.42284]
[1725574708815,0.42285,2365.5,2365.4,0.42286]
[1725574709524,3.63064,2365.6,2365.4,0.42286]
[1725574709928,3.63064,2365.6,2365.2,0.42289]
[1725574709929,3.2078,2365.6,2365.2,0.42289]
[1725574710227,0.42288,2365.3,2365.2,0.42289]
[1725574711016,0.3933,2365.5,2365.2,0.42289]
[1725574711233,0.42287,2365.4,2365.2,0.42289]
[1725574712022,0.42288,2365.3,2365.2,0.42289]
[1725574713730,0.42288,2365.4,2365.2,0.42289]
[1725574714127,0.42288,2365.4,2365.3,0.42288]
[1725574714327,0.42288,2365.3,2365.2,0.42289]
[1725574714723,4.228,2365.3,2365.2,0.42289]
[1725574714931,4.65088,2365.3,2365.2,0.42289]
[1725574717130,0.42297,2364.9,2364.8,0.42296]
[1725574717534,0.42297,2364.8,2364.7,0.42297]
[1725574717842,0.42296,2364.9,2364.8,0.42296]
[1725574718234,4.65176,2364.9,2364.8,0.42296]
[1725574721139,0.42299,2364.7,2364.6,0.7991]
[1725574721536,0.42299,2364.7,2364.6,0.3761]
[1725574721537,3.63079,2364.7,2364.6,0.3761]
[1725574721737,0.42302,2364.5,2364.4,0.42304]
[1725574722035,0.42304,2364.4,2364.3,1.18645]
[1725574722740,0.42304,2364.4,2364.3,0.80415]
[1725574724041,0.42307,2364.3,2364.2,0.42307]
[1725574725542,3.2078,2364.4,2364.1,0.42308]
[1725574725742,3.2078,2364.4,2364.0,0.7292]
[1725574725743,0.42309,2364.1,2364.0,0.7292]
[1725574726048,0.42309,2364.1,2364.0,0.3622]
[1725574726049,3.63089,2364.1,2364.0,0.3622]
[1725574727143,0.42311,2364.0,2363.9,0.42313]
[1725574727345,0.80051,2364.0,2363.9,0.42313]
[1725574727545,5.03091,2364.0,2363.9,0.42313]
[1725574728341,5.03091,2364.0,2363.6,0.7353]
[1725574728342,4.6078,2364.0,2363.6,0.7353]
[1725574728650,0.42313,2363.9,2363.7,0.42316]
[1725574728838,0.42314,2363.9,2363.7,0.42316]
[1725574729445,0.7689,2364.0,2363.7,0.42316]
[1725574729937,3.2078,2363.8,2363.6,0.7353]
[1725574730143,3.63096,2363.8,2363.6,0.7353]
[1725574730335,4.2304,2363.7,2363.6,0.42318]
[1725574730536,4.2304,2363.7,2363.5,0.42319]
[1725574730743,3.63096,2363.8,2363.5,0.42319]
[1725574730945,7.86136,2363.8,2363.5,0.42319]
[1725574731141,7.4382,2363.8,2363.2,0.7438]
[1725574731444,3.2078,2363.5,2363.2,0.3805]
[1725574731638,0.3818,2363.4,2363.0,0.375]
[1725574731839,6.4978,2363.2,2362.3,0.098]
[1725574732035,4.2312,2363.3,2362.2,3.665]
[1725574732036,3.63112,2362.9,2362.2,3.665]
[1725574732340,3.63112,2362.9,2362.2,0.375]
[1725574732341,0.42333,2362.8,2362.2,0.375]
[1725574732544,0.80513,2362.8,2362.4,0.4234]
[1725574732749,4.65616,2362.7,2362.3,0.42341]
[1725574732943,3.2078,2362.6,2362.3,0.42341]
[1725574733143,3.2078,2362.6,2362.2,0.79843]
[1725574733448,3.63117,2362.6,2362.2,0.375]
[1725574733743,3.2078,2362.6,2362.2,0.375]
[1725574736047,3.63117,2362.6,2362.2,0.375]
[1725574736236,3.2078,2362.3,2361.8,0.098]
[1725574736438,6.4978,2362.3,2361.8,0.3897]
[1725574736644,6.4978,2362.3,2361.7,0.3704]
[1725574736645,3.2078,2362.0,2361.7,0.3704]
[1725574737248,3.63128,2362.0,2361.7,0.3704]
[1725574738047,3.63128,2362.0,2361.5,0.42356]
[1725574738244,6.4978,2361.6,2360.9,0.114]
[1725574738450,6.4978,2361.6,2360.6,0.098]
[1725574738451,3.29,2361.2,2360.6,0.098]
[1725574738647,3.29,2361.2,2360.2,0.3728]
[1725574738648,3.29,2360.7,2360.2,0.3728]
[1725574738848,3.3058,2361.0,2360.2,0.3728]
[1725574739343,3.3058,2361.0,2360.3,3.2078]
[1725574739543,3.388,2361.2,2360.6,3.2078]
[1725574739759,3.388,2361.4,2361.2,0.42361]
[1725574739945,3.29,2361.4,2361.1,0.42362]
[1725574740146,3.29,2361.4,2360.8,0.3894]
[1725574740347,3.5774,2361.5,2361.2,0.42361]
[1725574740651,3.29,2361.4,2361.2,0.42361]
[1725574740950,3.5774,2361.5,2361.2,0.42361]
[1725574741147,3.2078,2361.5,2361.3,0.4236]
[1725574742650,3.2078,2361.5,2361.2,0.4236]
[1725574742846,3.2078,2361.5,2361.3,0.3633]
[1725574743048,3.2078,2361.5,2361.3,0.7869]
[1725574743244,0.00634853,2361.6,2361.5,0.42356]
[1725574743757,0.00634853,2361.6,2361.5,4.65796]
[1725574743947,0.00634853,2361.6,2361.5,5.04826]
[1725574744855,0.00634853,2361.6,2361.5,11.04826]
[1725574746748,3.2078,2362.0,2361.9,0.42349]
[1725574747751,3.2078,2362.3,2362.2,0.42342]
[1725574747948,7.6786,2362.6,2362.3,0.42341]
[1725574748252,7.6786,2362.6,2362.2,0.42343]
[1725574748253,0.00634853,2362.5,2362.2,0.42343]
[1725574748656,0.42972853,2362.5,2362.2,0.42343]
[1725574749054,0.00634853,2362.5,2362.2,0.42343]
[1725574749353,0.00634853,2362.5,2362.3,0.4234]
[1725574749749,0.00634853,2362.5,2362.4,0.4234]
[1725574750156,4.23914853,2362.5,2362.4,0.4234]
[1725574750655,0.00634853,2362.5,2362.4,0.4234]
[1725574750854,0.00634853,2362.5,2362.4,4.6562]
[1725574751258,0.00634853,2362.5,2362.0,0.357]
[1725574751259,10.23914853,2362.5,2362.0,0.357]
[1725574751451,3.2078,2362.3,2362.0,0.357]
[1725574751651,0.42348,2362.0,2361.7,0.42986853]
[1725574751962,3.63128,2362.0,2361.7,0.00634853]
[1725574752360,3.2078,2362.0,2361.8,0.4235]
[1725574752867,3.2078,2362.0,2361.9,0.42349]
[1725574753367,3.99473853,2362.5,2362.1,0.42344]
[1725574753662,3.99473853,2362.5,2362.2,0.42343]
[1725574754468,3.21414853,2362.5,2362.3,0.42341]
[1725574754673,3.21414853,2362.5,2362.2,0.42342]
[1725574754965,3.63753853,2362.5,2362.2,0.42342]
[1725574756360,0.4234,2362.4,2362.1,0.42345]
[1725574757951,3.63753853,2362.5,2362.2,0.42343]
[1725574758361,3.21414853,2362.5,2362.3,0.42341]
[1725574759057,3.21414853,2362.5,2362.4,0.4234]
[1725574759258,3.21414853,2362.5,2361.8,1.05875]
[1725574759259,3.63753853,2362.5,2361.8,1.05875]
[1725574759459,3.63754853,2362.5,2362.2,0.42343]
[1725574759960,0.4234,2362.4,2362.2,0.42343]
[1725574760761,3.21414853,2362.5,2362.3,0.42342]
[1725574760762,3.63753853,2362.5,2362.3,0.42342]
[1725574761160,0.42342,2362.3,2362.1,0.42344]
[1725574761469,3.63124,2362.2,2362.0,0.42346]
[1725574761655,3.63125,2362.2,2362.0,0.42346]
[1725574761857,0.42351,2361.8,2361.7,0.00634853]
[1725574762666,0.42351,2361.8,2361.2,4.6408]
[1725574762964,0.42353,2361.7,2361.5,0.42356]
[1725574763560,0.42353,2361.7,2361.4,0.42357]
[1725574763761,0.42355,2361.6,2361.2,3.2078]
[1725574763967,3.2078,2361.6,2361.0,5.57909]
[1725574764172,3.2078,2361.6,2361.1,0.42362]
[1725574764173,4.26668,2361.6,2361.1,0.42362]
[1725574764469,4.26668,2361.6,2360.9,3.2078]
[1725574764470,0.42361,2361.3,2361.0,0.42364]
[1725574765066,0.42362,2361.2,2360.9,3.63145]
[1725574765263,0.78932,2361.2,2360.9,3.63145]
[1725574765669,0.78932,2361.2,2361.0,0.42365]
[1725574765875,0.78932,2361.2,2360.9,0.42365]
[1725574766269,0.42365,2361.1,2360.8,0.42367]
[1725574766469,0.42366,2361.0,2360.7,0.4237]
[1725574766777,3.63146,2361.0,2360.7,0.4237]
[1725574767573,3.2078,2361.0,2360.7,0.4237]
[1725574767772,3.2078,2361.0,2360.8,0.42369]
[1725574767971,3.63146,2361.0,2360.7,0.42369]
[1725574768360,3.2078,2361.0,2360.8,0.42369]
[1725574769567,0.00634853,2361.3,2361.2,0.42361]
[1725574769973,0.00634853,2361.3,2361.2,4.65881]
[1725574770278,0.00634853,2361.3,2361.2,5.04591]
[1725574770667,0.00634853,2361.3,2361.2,6.10495]
[1725574770867,0.00634853,2361.3,2361.2,12.10495]
[1725574771876,0.00634853,2361.3,2361.2,6.10495]
[1725574772172,0.00634853,2361.3,2361.1,0.42362]
[1725574772383,0.42994853,2361.3,2361.1,0.42362]
[1725574772577,3.2078,2361.2,2361.1,0.42362]
[1725574772779,3.2078,2361.2,2361.0,0.42364]
[1725574772975,3.2078,2361.2,2361.1,0.42363]
[1725574773465,3.2078,2361.2,2361.1,4.65883]
[1725574774074,3.2078,2361.2,2360.9,0.3894]
[1725574774075,3.2078,2361.2,2361.0,0.42364]
[1725574774468,3.2078,2361.2,2361.1,0.42363]
[1725574776879,0.00634853,2361.3,2361.1,0.42363]
[1725574777673,3.2078,2361.2,2361.1,0.42363]
[1725574778479,3.2078,2361.2,2361.0,0.42364]
[1725574779368,3.2078,2361.2,2361.1,0.42363]
[1725574780477,3.2078,2361.2,2361.1,4.65883]
[1725574781077,0.00634853,2361.3,2361.2,0.42361]
[1725574782487,0.00634853,2361.3,2361.2,1.48265]
[1725574783372,0.00634853,2361.3,2361.2,1.85145]
[1725574783771,0.00634853,2361.3,2361.2,6.08665]
[1725574784979,0.00634853,2361.3,2361.2,5.02761]
[1725574786090,0.00634853,2361.3,2361.2,6.08665]
[1725574786278,0.00634853,2361.3,2361.2,0.42361]
[1725574786783,0.00634853,2361.3,2361.0,0.42364]
[1725574786988,3.2078,2361.2,2360.9,0.42365]
[1725574787282,1.64359849,2361.1,2360.9,0.42365]
[1725574788276,1.64359849,2361.1,2360.8,0.3554]
[1725574788579,1.64359849,2361.1,2360.8,0.77908]
[1725574789383,3.63143,2361.2,2360.1,0.424]
[1725574789384,5.91059849,2360.9,2360.1,0.424]
[1725574789582,0.42374,2360.6,2360.2,0.80129]
[1725574789780,0.42372,2360.6,2360.2,0.80128]
[1725574790089,2.06731849,2360.7,2360.3,0.42377]
[1725574790476,3.2078,2360.6,2360.3,0.42377]
[1725574791388,3.63153,2360.6,2360.2,0.42379]
[1725574791785,0.42374,2360.5,2360.2,0.42379]
[1725574791988,3.63153,2360.6,2360.2,0.42379]
[1725574792986,0.42374,2360.5,2360.1,0.4238]
[1725574793298,6.4978,2360.3,2359.6,3.2078]
[1725574793486,3.2078,2360.0,2359.4,0.61870603]
[1725574793687,3.2078,2359.7,2359.0,3.2078]
[1725574793985,3.2078,2359.7,2359.0,3.6318]
[1725574793986,0.42395,2359.4,2359.0,3.6318]
[1725574794185,3.29,2359.5,2359.0,3.2078]
[1725574794491,3.29,2359.5,2358.2,2.16790866]
[1725574794492,6.9218,2359.1,2358.7,0.42405]
[1725574794693,6.92179,2359.1,2358.7,0.42405]
[1725574794885,3.2078,2359.1,2358.4,40.8]
[1725574795082,3.29,2359.3,2358.9,0.42402]
[1725574795083,3.71397,2359.3,2358.9,0.42402]
[1725574795287,3.29,2359.3,2358.5,4.26803]
[1725574795587,0.5774,2359.6,2359.5,0.42392]
[1725574795889,0.3654,2359.6,2359.5,0.42392]
[1725574796286,0.00634853,2359.9,2359.8,0.42387]
[1725574799093,6.58709335,2361.1,2360.2,0.42379]
[1725574799094,3.2078,2360.3,2360.2,0.42379]
[1725574799387,3.2078,2360.3,2360.2,1.48328]
[1725574799592,3.2078,2360.3,2360.2,5.72008]
[1725574800195,3.5772,2360.7,2360.6,0.42372]
[1725574800497,0.3694,2360.7,2360.6,0.42372]
[1725574801499,0.00634853,2360.9,2360.8,0.42369]
[1725574806997,1.05929,2360.7,2360.0,0.00634853]
[1725574807195,3.63161,2360.1,2360.0,0.00634853]
[1725574807391,5.28732628,2360.1,2360.0,0.00634853]
[1725574807590,15.52412628,2360.1,2360.0,0.00634853]
[1725574807791,3.2078,2360.1,2360.0,0.43017853]
[1725574808092,1.65571628,2360.5,2360.0,4.24314853]
[1725574808293,1.65571628,2360.5,2360.4,0.42376]
[1725574808505,3.33202171,2360.6,2360.3,0.42377]
[1725574808506,3.20383628,2360.6,2360.3,0.42377]
[1725574810793,2.78011628,2360.6,2360.1,0.3795]
[1725574810999,3.20383628,2360.6,2360.3,0.42376]
[1725574811300,3.20383628,2360.6,2360.5,0.42374]
[1725574811301,2.39861628,2360.6,2360.5,0.42374]
[1725574811502,2.03351628,2360.6,2360.5,0.42374]
[1725574811710,0.3778,2360.6,2360.5,0.42374]
[1725574814313,0.42381,2360.1,2360.0,0.00634853]
[1725574814511,5.28860609,2360.1,2360.0,0.00634853]
[1725574814816,7.86841,2360.1,2360.0,0.00634853]
[1725574815313,9.52527396,2360.1,2360.0,0.00634853]
[1725574816407,9.10146396,2360.1,2360.0,0.43017853]
[1725574816712,7.4446,2360.1,2360.0,0.43017853]
[1725574817210,3.2078,2360.1,2360.0,0.43017853]
[1725574817918,3.2078,2360.1,2360.0,0.00634853]
[1725574819117,7.86841,2360.1,2360.0,0.00634853]
[1725574819313,9.52527396,2360.1,2360.0,0.00634853]
[1725574819519,4.69115,2360.1,2360.0,0.00634853]
[1725574819711,7.86841,2360.1,2360.0,0.00634853]
[1725574821221,8.92795,2360.1,2360.0,0.00634853]
[1725574821523,0.42391,2359.6,2359.4,0.42393]
[1725574821716,0.3939,2359.5,2359.4,0.42393]
[1725574822320,0.3939,2359.5,2358.9,1.06007]
[1725574822321,0.81783,2359.5,2358.9,1.06008]
[1725574822616,0.3939,2359.5,2358.9,1.06008]
[1725574822816,0.3939,2359.5,2358.5,7.15918753]
[1725574822817,3.2078,2359.0,2358.2,1.06039]
[1725574823026,0.78614,2358.9,2358.6,0.42407]
[1725574823219,0.78614,2358.9,2358.4,0.42411]
[1725574823220,0.42407,2358.7,2358.4,0.42411]
[1725574823423,3.63187,2358.7,2358.3,0.79702]
[1725574823619,3.63187,2358.7,2358.1,3.6011]
[1725574823620,3.63187,2358.7,2358.1,3.2078]
[1725574823812,3.2078,2358.7,2358.1,3.2078]
[1725574824018,0.3666,2358.8,2358.6,0.42407]
[1725574824320,0.3666,2358.8,2358.1,4.26822]
[1725574824321,3.5744,2358.8,2358.1,3.2078]
[1725574824617,6.93191,2358.5,2358.1,0.42417]
[1725574824825,6.5078,2358.5,2358.2,0.42415]
[1725574825417,6.5078,2358.5,2357.1,0.212]
[1725574825418,0.42432,2357.3,2357.1,0.212]
[1725574825617,0.42432,2357.3,2356.5,4.31533866]
[1725574825618,3.3,2357.3,2356.5,3.6326]
[1725574825820,3.48e-06,2357.1,2357.0,1.4853]
[1725574826017,0.42425,2357.7,2356.7,0.00636348]
[1725574826219,3.2078,2357.7,2356.7,0.00636348]
[1725574826414,3.63212,2357.4,2356.7,0.00636348]
[1725574826623,3.2078,2357.1,2356.7,0.00636348]
[1725574826817,3.2078,2357.4,2356.7,0.00636348]
[1725574827020,0.00636348,2357.3,2356.8,3.2078]
[1725574827520,0.00636348,2357.3,2356.7,0.43077348]
[1725574827725,0.00636348,2357.3,2356.8,0.42441]
[1725574827914,0.00636348,2357.3,2356.7,7.45656348]
[1725574828115,0.00636348,2357.3,2356.7,3.21416348]
[1725574828315,0.00636348,2357.3,2356.7,0.00636348]
[1725574828524,3.2078,2357.1,2356.7,0.00636348]
[1725574828714,4.40636348,2357.3,2356.7,0.00636348]
[1725574828715,0.00636348,2357.3,2357.2,0.42433]
[1725574828915,0.00636348,2357.3,2357.2,6.42433]
[1725574829117,3.4198,2357.9,2357.6,0.42424]
[1725574829318,3.4198,2358.4,2357.5,0.42428]
[1725574829618,3.2078,2358.4,2357.6,0.42426]
[1725574829928,3.2078,2358.4,2357.5,0.361]
[1725574829929,3.2078,2358.4,2357.5,0.78527]
[1725574830124,0.00636348,2358.2,2357.5,0.361]
[1725574830320,0.00636348,2358.2,2357.7,3.2078]
[1725574830518,0.00636348,2358.2,2357.8,0.42423]
[1725574830720,0.00636348,2358.2,2357.7,3.63204]
[1725574831420,3.2078,2358.1,2357.5,0.78527]
[1725574832127,3.2078,2358.1,2357.5,0.361]
[1725574832516,3.5894,2358.1,2357.5,0.361]
[1725574832918,3.5894,2358.1,2357.4,3.2078]
[1725574833424,3.5894,2358.1,2357.3,0.4243]
[1725574833425,3.2078,2357.8,2357.3,0.4243]
[1725574833825,3.2078,2357.8,2357.3,3.2078]
[1725574834725,3.2078,2357.8,2357.2,3.63212]
[1725574835536,3.2078,2357.8,2357.3,0.42431]
[1725574835730,3.2078,2357.8,2357.2,3.2078]
[1725574836026,3.2078,2357.8,2357.3,0.42431]
[1725574836426,3.2078,2357.8,2357.3,0.42432]
[1725574836630,3.2078,2357.8,2357.2,3.63212]
[1725574837337,3.2078,2357.5,2356.9,3.2078]
[1725574837631,0.3767,2357.4,2356.9,0.42437]
[1725574838429,0.3767,2357.4,2357.0,0.42437]
[1725574838929,3.2078,2357.5,2356.9,3.2078]
[1725574839131,3.2078,2357.5,2357.3,0.42431]
[1725574839324,3.2078,2357.5,2357.4,0.4243]
[1725574839532,3.2078,2357.5,2357.0,0.42436]
[1725574839533,7.4494,2357.5,2357.0,0.42436]
[1725574839721,3.2078,2357.5,2357.0,0.42436]
[1725574839925,0.4243,2357.4,2356.9,0.42438]
[1725574840122,0.42441,2356.8,2356.7,0.00636348]
[1725574840633,8.6432,2356.8,2356.2,0.42451]
[1725574840833,3.5898,2356.7,2356.3,0.42449]
[1725574841225,0.356,2356.9,2356.6,0.42443]
[1725574841430,3.21416348,2357.0,2356.4,3.2078]
[1725574841628,3.21416348,2357.0,2356.9,0.42439]
[1725574841828,3.21416348,2357.0,2356.5,0.00636348]
[1725574841829,0.42439,2356.9,2356.5,0.00636348]
[1725574842025,3.21416348,2357.0,2356.7,0.42442]
[1725574842227,3.21416348,2357.0,2356.9,0.42439]
[1725574842432,0.00636348,2357.0,2356.9,0.42439]
[1725574843435,0.00636348,2357.0,2356.5,0.00636348]
[1725574843436,3.21416348,2357.0,2356.6,0.42443]
[1725574843738,3.63853348,2357.0,2356.6,0.42443]
[1725574843946,3.21416348,2357.0,2356.7,0.42442]
[1725574844232,3.21416348,2357.0,2356.9,0.42439]
[1725574844233,0.00636348,2357.0,2356.9,0.42439]
[1725574844442,0.00636348,2357.0,2356.8,0.42439]
[1725574844736,0.00636348,2357.0,2356.7,4.2432]
[1725574844737,0.00636348,2357.0,2356.9,0.42439]
[1725574845043,0.00636348,2357.0,2356.8,0.42439]
[1725574845742,0.00636348,2357.0,2356.9,0.42439]
[1725574846435,0.00636348,2357.0,2356.9,11.72777]
[1725574847536,0.00636348,2357.0,2356.9,12.11737]
[1725574847933,3.2078,2357.3,2356.9,12.11737]
[1725574847934,3.2078,2357.3,2357.2,0.42433]
[1725574848132,3.2078,2357.7,2357.6,0.42425]
[1725574848344,3.2078,2357.7,2357.5,0.42427]
[1725574848642,3.2078,2357.7,2357.6,0.42426]
[1725574849338,0.00636348,2357.9,2357.5,0.42427]
[1725574849339,0.43057348,2357.9,2357.5,0.42427]
[1725574849642,0.00636348,2357.9,2357.5,0.42427]
[1725574850033,0.00636348,2357.9,2357.6,0.42426]
[1725574850231,0.00636348,2357.9,2357.7,0.42424]
[1725574850534,0.00636348,2357.9,2357.6,0.42425]
[1725574851536,0.00636348,2357.9,2357.5,0.42427]
[1725574852231,3.63204,2357.7,2357.3,0.42431]
[1725574852436,3.63204,2357.7,2357.2,0.42432]
[1725574852733,0.42426,2357.6,2357.2,0.42432]
[1725574853041,3.2078,2357.7,2357.6,0.42426]
[1725574853239,0.00636348,2357.9,2357.3,3.2078]
[1725574853240,0.00636348,2357.9,2357.8,0.42423]
[1725574854641,0.00636348,2357.9,2357.8,3.63203]
[1725574854845,0.00636348,2357.9,2357.7,0.42423]
[1725574855032,0.00636348,2357.9,2357.1,1.06089]
[1725574855233,0.00636348,2357.9,2357.8,0.42423]
[1725574856530,0.00636348,2357.9,2357.8,4.66503]
[1725574856734,4.835,2358.5,2358.4,0.42412]
[1725574856936,0.739,2358.5,2358.4,0.42412]
[1725574857140,0.3632,2358.5,2358.4,0.42412]
[1725574857335,3.2078,2358.8,2358.6,0.42407]
[1725574858038,3.2078,2358.8,2358.5,0.43045348]
[1725574858437,3.63185,2358.8,2358.5,0.00636348]
[1725574858742,0.42407,2358.7,2358.5,0.00636348]
[1725574858937,4.66408,2358.7,2358.5,0.00636348]
[1725574859139,0.42408,2358.6,2358.5,0.00636348]
[1725574859640,4.24,2358.7,2358.5,0.00636348]
[1725574859641,0.42406,2358.7,2358.5,0.00636348]
[1725574859850,3.2078,2358.8,2358.5,0.00636348]
[1725574860044,3.63185,2358.8,2358.5,0.43044348]
[1725574860743,3.2078,2358.8,2358.5,0.43044348]
[1725574861137,0.42407,2358.7,2358.5,0.43044348]
[1725574861445,3.2078,2358.8,2358.7,0.42406]
[1725574861663,0.74536348,2358.9,2358.8,0.42405]
[1725574861664,0.00636348,2358.9,2358.8,0.42405]
[1725574862036,0.00636348,2358.9,2358.6,0.3584]
[1725574862244,0.00636348,2358.9,2358.5,3.21416348]
[1725574862245,0.42408,2358.6,2358.5,0.00636348]
[1725574862746,0.42408,2358.6,2357.7,3.2078]
[1725574862747,0.42415,2358.3,2357.7,3.2078]
[1725574862939,0.3691,2358.2,2358.0,0.42418]
[1725574863450,0.3691,2358.2,2358.1,0.42417]
[1725574863847,3.2078,2358.3,2358.2,0.42415]
[1725574864155,3.2078,2358.3,2358.2,4.66495]
[1725574864337,4.473,2358.7,2358.5,0.42409]
[1725574865536,4.473,2358.7,2358.3,3.2078]
[1725574865537,4.096,2358.7,2358.6,0.42408]
[1725574866544,4.096,2358.7,2358.5,0.42409]
[1725574866850,4.096,2358.7,2358.6,0.42408]
[1725574867648,4.096,2358.7,2358.5,0.42409]
[1725574868744,4.096,2358.7,2358.3,3.2078]
[1725574868745,4.096,2358.7,2358.6,0.42408]
[1725574868936,3.21416348,2358.9,2358.8,0.42405]
[1725574868937,0.00636348,2358.9,2358.8,0.42405]
[1725574869136,0.3833,2359.3,2359.0,0.424]
[1725574869339,0.3833,2359.3,2359.1,0.42399]
[1725574870152,0.00636348,2359.4,2359.2,0.42397]
[1725574870352,0.00636348,2359.4,2359.1,0.42398]
[1725574871643,0.00636348,2359.4,2359.2,0.42397]
[1725574871845,0.00636348,2359.4,2358.9,3.2078]
[1725574872049,0.00636348,2359.4,2359.3,0.42396]
[1725574872549,0.00636348,2359.4,2359.3,5.40936]
[1725574872947,0.3815,2360.0,2359.9,0.42385]
[1725574873154,0.3815,2360.0,2359.8,0.42385]
[1725574873346,0.3815,2360.0,2359.7,0.42387]
[1725574873847,0.3815,2360.0,2359.8,0.42387]
[1725574874042,0.3815,2360.0,2359.7,0.42387]
[1725574874751,0.80534,2360.0,2359.3,2.1816]
[1725574874951,0.42385,2359.9,2359.5,0.42391]
[1725574875153,3.21416348,2360.1,2359.4,0.42394]
[1725574875154,0.43018348,2360.1,2359.4,0.42394]
[1725574875355,0.00636348,2360.1,2359.8,0.42386]
[1725574875551,0.43017348,2360.1,2359.8,0.42386]
[1725574875756,3.63797348,2360.1,2359.8,0.42386]
[1725574876056,0.42391,2359.6,2359.2,0.42397]
[1725574876250,0.42391,2359.6,2359.2,0.42396]
[1725574876447,0.42389,2359.7,2359.1,0.00636348]
[1725574876643,4.096,2360.0,2359.2,3.2078]
[1725574876942,0.42385,2359.9,2359.5,0.4239]
[1725574877151,4.096,2360.0,2359.3,1.0599]
[1725574877454,4.096,2360.0,2359.5,3.2078]